Cogmind - Beta 15 @@@ ROGUE MODE // 2025.07.04 @ 08:20:13 Player: beans Result: Destroyed by G-34 Mercenary with Small Laser Performance ------------- Evolutions (1) 500 Regions Visited (2) 400 Robots Destroyed (33) 165 Value Destroyed (613) 613 Prototype IDs (1) 20 Alien Tech Used (0) 0 Bonus (0) 0 TOTAL SCORE: 1698 Bonus ------- None Cogmind --------- Core Integrity 0/400 Matter 300/300 Energy 261/265 System Corruption 0% Temperature Cool (50) Movement Core (250) Ox4 Location -9/Materials Parts ------- > --- POWER (1) -------- Improved Ion Engine > --- PROPULSION (2) --- (None) > --- UTILITY (3) ------ (None) > --- WEAPON (3) ------- Particle Cannon Heavy Assault Rifle > --- INVENTORY (5) ---- (None) Peak State ------------ > --- POWER ------------ Ion Engine > --- PROPULSION ------- Aluminum Leg Aluminum Leg > --- UTILITY ---------- Targeting Computer > --- WEAPON ----------- EM Pulse Gun Improved EM Shotgun Assault Rifle > --- INVENTORY -------- (None) [Rating: 9] Favorites ----------- Power Ion Engine Engine Ion Engine Propulsion Aluminum Leg Treads Light Treads Leg Aluminum Leg Utility Targeting Computer Device Shield Generator Processor Targeting Computer Weapon EM Pulse Gun Energy Gun EM Pulse Gun Energy Cannon Particle Cannon Ballistic Gun Heavy Assault Rifle Build | -11 -10 -9 ------- Run | Yrd Mat Mat Slots Evolved 2 | . . 2 Power . | . . . Propulsion . | . . . Utility 1 | . . 1 Weapon 1 | . . 1 Parts Attached 16 | 6 1 9 Power 2 | 1 . 1 Engine 2 | 1 . 1 Core . | . . . Reactor . | . . . Propulsion 5 | 4 . 1 Treads 3 | 2 . 1 Leg 2 | 2 . . Wheel . | . . . Hover . | . . . Flight . | . . . Utility 3 | . 1 2 Device 2 | . . 2 Storage . | . . . Processor 1 | . 1 . Hackware . | . . . Protection . | . . . Artifact . | . . . Weapon 6 | 1 . 5 Energy Gun 3 | 1 . 2 Energy Cannon 1 | . . 1 Ballistic Gun 2 | . . 2 Ballistic Cannon . | . . . Launcher . | . . . Special Weapon . | . . . Impact Weapon . | . . . Slashing Weapon . | . . . Piercing Weapon . | . . . Special Melee Weapon . | . . . Unidentified Prototypes 1 | . . 1 Parts Lost 10 | . 1 9 Power 1 | . . 1 Propulsion 3 | . . 3 Utility 3 | . . 3 Weapon 3 | . 1 2 Highest Loss Streak 4 | . 1 4 To Critical Strikes 1 | . . 1 Average Backups . | . . . Power . | . . . Propulsion . | . . . Utility . | . . . Weapon . | . . . Tool/Special . | . . . Unused Backups 1 | 1 . . Power . | . . . Propulsion . | . . . Utility . | . . . Weapon 1 | 1 . . Tool/Special . | . . . Average Slot Usage (%) 48 | . 57 45 Engine 8 | . 14 6 Treads 1 | . . 2 Leg 14 | . 28 8 Device 2 | . . 3 Processor 6 | . 3 8 Energy Gun 7 | . 10 5 Energy Cannon 3 | . . 4 Ballistic Gun 3 | . . 5 Peak Build Rating 9 | 4 4 9 Average Rating 5 | 3 3 6 On Entrance 2 | . 4 4 Naked Turns . | . . . Heaviest Build 16 | 7 7 16 Greatest Support 40 | 40 20 20 Greatest Overweight (x) 5 | . . 5 Average Overweight (x) . | . . . Largest Inventory Capacity 5 | 5 5 5 Average Capacity 5 | 5 5 5 Most Carried 3 | 3 1 1 Average Carried . | . . . Final Capacity 5 | 5 5 5 Final Carried . | . . . Class Distribution -------------------- 100% | Mutant Dominant Class ---------------- Mutant | -10/Materials Mutant | -9/Materials Resources | -11 -10 -9 ----------- Run | Yrd Mat Mat Matter Collected 418 | 260 . 158 Remotely . | . . . Salvage Created 1191 | 184 156 851 Parts 61 | 12 9 40 Haulers Intercepted . | . . . Recyclers Shooed 3 | 1 1 1 Parts Field Recycled . | . . . Retrieved Matter . | . . . Parts Self-Destructed . | . . . Prevented . | . . . Kills | -11 -10 -9 ------- Run | Yrd Mat Mat Combat Hostiles Destroyed 19 | . 1 18 Guns 10 | . 1 9 Cannons 7 | . . 7 AOE 2 | . . 2 Classes Destroyed 8 | 3 1 4 Worker 6 | 2 2 2 Builder 2 | . . 2 Tunneler 2 | 2 . . Recycler 3 | 1 1 1 Watcher 1 | . . 1 Swarmer 6 | . . 6 Grunt 12 | . 1 11 Sentry 1 | . . 1 Best Kill Streak 7 | 5 3 7 Combat Bots Only 4 | . 1 4 Max Kills in Single Turn 3 | 2 2 3 Gunslinging . | . . . Exploded 2 | . . 2 Melee . | . . . Uniques/NPCs Destroyed . | . . . Combat | -11 -10 -9 -------- Run | Yrd Mat Mat Hostile Shots Fired 163 | . 26 137 Missed 47 | . 11 36 Hits 116 | . 15 101 Projectile 116 | . 15 101 Critical Strikes 2 | . . 2 Damage Taken 1217 | . 216 1001 Core 437 | . 33 404 Absorbed by Shields 45 | . . 45 Core Remaining (%) 93 | 100 86 . Volleys Fired 89 | 5 23 61 Largest 2 | 1 1 2 Hottest 91 | 40 40 91 Shots Fired 118 | 5 23 90 Gun 91 | 5 23 63 Cannon 27 | . . 27 Launcher . | . . . Special . | . . . Kinetic 26 | . . 26 Thermal 27 | . . 27 Explosive . | . . . Electromagnetic 65 | 5 23 37 Robot Hit Streak 10 | 3 4 10 Robot Miss Streak 3 | 1 3 3 Penetration Max . | . . . Secondary Targets . | . . . Shots Hit Robots 78 | 4 14 60 Core Hits 44 | 5 5 34 Critical Kills . | . . . Critical Parts Destroyed . | . . . Critical Strikes 1 | . 1 . Corrupt 1 | . 1 . Melee Attacks . | . . . Impact . | . . . Slashing . | . . . Piercing . | . . . Sneak Attacks . | . . . Combat Hostiles . | . . . Follow-up Attacks . | . . . Damage Inflicted 1645 | 104 271 1270 Guns 930 | 55 185 690 Cannons 370 | . . 370 Explosions 345 | 49 86 210 Melee . | . . . Ramming . | . . . Kinetic 202 | . . 202 Thermal 715 | 49 86 580 Explosive . | . . . Electromagnetic 728 | 55 185 488 Impact . | . . . Slashing . | . . . Piercing . | . . . Highest Corruption . | . . . Average Corruption . | . . . Corruption Purged . | . . . Corruption Blocked . | . . . Overload Shots . | . . . Overflow Damage . | . . . Projectiles . | . . . Explosions . | . . . Melee . | . . . Knockbacks . | . . . Impact . | . . . Kinetic . | . . . Secondary . | . . . Self-Inflicted Damage 77 | . 35 42 Shots 3 | . 1 2 Rammed . | . . . Targets Rammed . | . . . Kicked . | . . . Crushed . | . . . Highest Temperature 206 | . 60 206 Average Temperature 49 | . 29 54 Received Heat Transfer 469 | . 99 370 Siege Activations . | . . . Martial Activations . | . . . Shielding Activations . | . . . Robots Disrupted . | . . . Combat Hostiles . | . . . Robots Corrupted . | . . . Combat Hostiles . | . . . Parts Fried 1 | . . 1 Impact Corruptions . | . . . Robots Melted . | . . . Combat Hostiles . | . . . Parts Melted 3 | . . 3 Heat Transferred 1166 | 50 200 916 Parts Sabotaged . | . . . Parts Stolen . | . . . Parts Stripped . | . . . Power Chain Reactions 7 | 1 1 5 Alert | -11 -10 -9 ------- Run | Yrd Mat Mat Maximum Alert Level . | . . . Low Security (%) 100 | 100 100 100 Level 1 . | . . . Level 2 . | . . . Level 3 . | . . . Level 4 . | . . . Level 5 . | . . . High Security . | . . . Max Security . | . . . Peak Influence 186 | 15 53 186 Initial 22 | . . 22 Average 72 | 2 10 112 Influence Increases 629 | 25 108 496 Destroy 0b10 Robot/C 380 | . 20 360 Destroy 0b10 Robot/NC 70 | 25 15 30 Destroy Leader 82 | . 10 72 Disable Machine 15 | . . 15 Destroy Structure 22 | . 3 19 Lose Combat Pursuer 60 | . 60 . Influence Decreases 451 | 25 55 371 Entered New Map 31 | . . 31 Time Decay 320 | 25 45 250 Lost Part 100 | . 10 90 Squads Dispatched 3 | . . 3 Investigation 2 | . . 2 Extermination . | . . . Reinforcement 1 | . . 1 Assault . | . . . Garrison . | . . . Intercept . | . . . Searches Triggered . | . . . Construction Impeded . | . . . Haulers Reinforced . | . . . Active Scanning Responses . | . . . Cargo Convoy Interrupts . | . . . Stealth | -11 -10 -9 --------- Run | Yrd Mat Mat Distress Signals 3 | . 2 1 Communications Jammed . | . . . Distress Signals . | . . . Times Spotted 32 | . 7 25 Peak Tracking Total 4 | . 3 4 Tactical Retreats 3 | . 3 . Traps | -11 -10 -9 ------- Run | Yrd Mat Mat Traps Triggered 2 | . . 2 Indirectly . | . . . Trap Hack Attempts . | . . . Triggered . | . . . Disarmed . | . . . Reprogrammed . | . . . Reused . | . . . Traps Extracted . | . . . Installed . | . . . Triggered . | . . . Machines | -11 -10 -9 ---------- Run | Yrd Mat Mat Machines Disabled 1 | . . 1 Max in Single Turn 1 | . . 1 Machines Repaired . | . . . Machines Dismantled . | . . . Machines Sabotaged . | . . . Overloaded Fab Kills . | . . . Hacking | -11 -10 -9 --------- Run | Yrd Mat Mat Machines Accessed . | . . . Terminals . | . . . Fabricators . | . . . Repair Stations . | . . . Recycling Units . | . . . Scanalyzers . | . . . Garrison Access . | . . . Total Hacks . | . . . Successful . | . . . Failed . | . . . Catastrophic . | . . . Database Lockouts . | . . . Manual . | . . . Terminals . | . . . Fabricators . | . . . Repair Stations . | . . . Recycling Units . | . . . Scanalyzers . | . . . Garrison Access . | . . . Terminal Hacks . | . . . Fabricator Hacks . | . . . Repair Station Hacks . | . . . Recycling Unit Hacks . | . . . Scanalyzer . | . . . Garrison Access Hacks . | . . . Unauthorized Hacks . | . . . Terminals . | . . . Fabricators . | . . . Repair Stations . | . . . Recycling Units . | . . . Scanalyzers . | . . . Garrison Access . | . . . Data Cores Recovered . | . . . Used . | . . . Hacking Detections . | . . . Full Trace Events . | . . . Feedback Events . | . . . Feedback Blocked . | . . . Robot Schematics Acquired . | . . . Robots Built . | . . . Authchips . | . . . Time . | . . . Total Robot Build Rating . | . . . Part Schematics Acquired . | . . . Parts Built . | . . . Authchips . | . . . Time . | . . . Total Part Build Rating . | . . . Parts Repaired . | . . . Time . | . . . Parts Recycled . | . . . Recycled Matter . | . . . Retrieved Matter . | . . . Retrieved Components . | . . . Parts Scanalyzed . | . . . Part Schematics Acquired . | . . . Parts Damaged . | . . . Bothacking | -11 -10 -9 ------------ Run | Yrd Mat Mat Used RIF Installer . | . . . Robots Hacked . | . . . Non-combat . | . . . Combat . | . . . Robot Hacks Applied . | . . . Relay Couplers Released . | . . . Fabnet Peak Effective % . | . . . Robots Rewired . | . . . Allies Hacked . | . . . Hacks Repelled . | . . . Allies | -11 -10 -9 -------- Run | Yrd Mat Mat Total Allies . | . . . Largest Group . | . . . Highest-Rated Group . | . . . Highest-Rated Ally . | . . . Total Orders . | . . . Ally Attacks . | . . . Total Damage . | . . . Kills . | . . . Allies Corrupted . | . . . Allies Melted . | . . . Intel | -11 -10 -9 ------- Run | Yrd Mat Mat Active Infowar (turns) . | . . . Robot Analysis Total . | . . . Derelict Logs Recovered . | . . . Drone Launches . | . . . Drone Recoveries . | . . . Exploration | -11 -10 -9 ------------- Run | Yrd Mat Mat Turns Passed 977 | 140 235 602 Spaces Moved 539 | 92 156 291 Core 99 | 11 . 88 Treads 79 | 25 . 54 Legs 361 | 56 156 149 Wheels . | . . . Hover . | . . . Flight . | . . . Fastest Speed 50 | 50 120 50 Average Speed 132 | 122 120 142 Slowest Speed 300 | 160 120 300 Overloaded Moves . | . . . Propulsion Burnouts . | . . . Robots Hopped . | . . . Potential Cave-ins . | . . . Cave-ins Triggered . | . . . Exploration Rate (%) 22 | 5 28 34 Regions Visited 2 Branch Regions . Pre-discovered Areas . | . . . Known Exits Taken . | . . . Unknown Exits Taken 2 | 1 1 . Scrap Searched . | . . . Spaces Dug . | . . . Terrain Destroyed 20 | 2 2 16 Melee . | . . . Projectile . | . . . AOE 20 | 2 2 16 Terrain Rammed . | . . . Walls Destroyed . | . . . Machines Disabled . | . . . Actions | -11 -10 -9 --------- Run | Yrd Mat Mat Total 686 | 114 181 391 Wait 23 | 2 1 20 Move 537 | 91 155 291 Hop . | . . . Pick Up 17 | 7 1 9 Fast Attach . | . . . Attach 14 | 4 1 9 Detach . | . . . Swap 2 | 2 . . Drop 4 | 3 . 1 Fire 89 | 5 23 61 Melee . | . . . Ram . | . . . Kick . | . . . Crush . | . . . Escape Stasis . | . . . Rewire . | . . . Trap . | . . . Miscellaneous . | . . . Route ------- -11/Scrapyard -10/Materials -9/Materials (discovered 1 exit: [*Min]) History --------- Turn | Location | Event 4 | -11/Scrapyard | Discovered new exit (range 15) 141 | -11/Scrapyard | Entered Materials 313 | -10/Materials | Build established: Mutant 348 | -10/Materials | Discovered new exit (range 14) 376 | -10/Materials | Entered another Materials area 376 | -9/Materials | Evolved 2 slots: Utility x1, Weapon x1 654 | -9/Materials | Discovered new exit (range 9) 658 | -9/Materials | Lost 4 parts (1p2n1w) 726 | -9/Materials | Core integrity fell below 50% 819 | -9/Materials | Core integrity fell below 20% 857 | -9/Materials | Lost 3 parts (1n2u) 978 | -9/Materials | Destroyed by G-34 Mercenary with Small Laser Last Messages --------------- Acquired 3 matter. S-10 Pest destroyed. Acquired 2 matter. Acquired 1 matter. Acquired Imp. Ion Engine. Acquired 10 matter. O-16 Technician: "IFF HANDSHAKE FAILED. SECURING TERMINAL." ALERT: Hostiles spotted, dispatching reinforcements to Terminal M001. Triggered Alarm Trap. An alarm sounds. ALERT: Alarm triggered, dispatching investigation squad. Shield Generator destroyed. Heat Sink melted. G-34 Mercenary destroyed. Acquired 22 matter. G-34 Mercenary destroyed. Acquired 3 matter. Map ----- +----------------------------------------------------+ | | | | | | | | | | | | | | | | | | | | | | | | | | | | | | | | | ?????????????????????????????????????????????????? | | ???????????????????????????#######???????????????? | | ???????????????????????????**//[[#???????????????? | | ???????????????????????????**//[[#???????????????? | | ??????????????????????????? #???????????????? | | ??????????????????######### #####+#?????????? | | ??????????????????? * ?????????? | | ????????????????????? g% ??????????? | | ??????????????????????? ! k???????????????? | | ??????????????######????#@ #????????????????????? | | ??????????????# ??# #????????????????????? | | ???????????????? """ # #????????????????????? | | ?????????????????"""" + #????????????????????? | | ?????????????????"""" # #?????????? ??????? | | ?????????????????"""" ??# #?????????# "?????? | | ?????????????????"""????# #?????????# "? ?? | | ????????????????? ??????# #?????????" ? ? | | ????????????????????????#o #?????????T ? ? | | ????????????????????????# #?????????" ? ? | | ????????????????????????# #?????????# " ? | | ????????????????????????# #?????????# """ "? | | ????????????????????????# #?????????# """ "" | | ???????????###?????????## ##????????# """ "" | | ???????????# ####### #????????# "" " | | ???????????# ########## """ "" | | ???????????# " T "" " | | ???????????# ########?# "" " | | ???????????# ####### #????????# " % | | ???????????###+????????# #####????????# = | | ???????????????????????# #########????# | | ???????????????????????# ## #??### | | ???????????????????????# ## #??# % | | ???????????????????????# ## #### | | ???????????????????????# ## !! + % | +----------------------------------------------------+ Best States ------------- Heat Dissipation 28 Energy Generation 12 Energy Capacity 265 Matter Stores 300 Matter Capacity 300 Sight Range 16 Terrain Scan Density 10 Evasion (%) 55 Targeting Accuracy 5 Recoil Reduction 2 Item Schematics ----------------- None Robot Schematics ------------------ None Fabricated ------------ Nothing Repaired ---------- Nothing Alien Tech Used ----------------- None Achievements -------------- None Challenges ------------ None Game ------ Seed SystemSmartTearclaws Manual? 0 Play Time 00:20:12 Cumulative 36.1 hours Start 2025.07.03 @ 08:40:45 End 2025.07.04 @ 08:20:13 Sessions 4 Manual Loads 0 Difficulty Rogue Special Mode None Game No. 173 Rogue 173 Adventurer 0 Explorer 0 Win Type - Total 0 Types 0/0/0/0/0/0/0/0/0/0 Lore% 22 Gallery% 23 Achievement% 19 Wizard Run 0 Options --------- Layout 2 ASCII 0 Keyboard 0 Movement Mouse Keybinds 0 Fullscreen 1 Font 24/Smallcaps Map View 50x44 Zoom Use 7% Tactical HUD 0 Map Filters NONE Filters NONE Steam 1 RUN: 5e627c8b-2581-43c7-8283-e039046e5f53